bitfinex-derivatives/quotes_BNBF0:USTF0_20250406
["timestamp","ask_amount","ask_price","bid_price","bid_amount"]
[1743936539518,0.58177079,588.62,588.0,1.27319059]
[1743936539819,0.58177079,588.61,588.0,1.27319059]
[1743936540019,0.58177079,588.6,587.98,1.27319059]
[1743936540319,0.58177079,588.59,587.98,1.27319059]
[1743936540513,0.58177079,588.58,587.98,1.27319059]
[1743936540718,0.702,588.63,587.98,1.27319059]
[1743936540918,0.58177312,588.62,587.98,1.27319059]
[1743936541119,0.58177312,588.61,587.98,1.27319059]
[1743936541318,0.58177312,588.6,587.98,1.27319059]
[1743936541515,0.58177312,588.59,587.98,1.27319059]
[1743936541819,0.58177312,588.58,587.98,1.27319059]
[1743936542019,0.58177312,588.57,587.98,1.27319059]
[1743936542220,0.702,588.63,587.98,1.27319059]
[1743936542420,0.58177087,588.62,587.98,1.27319059]
[1743936542620,0.58177087,588.61,587.98,1.27319059]
[1743936542821,0.702,588.63,587.98,1.27319059]
[1743936542822,0.58177087,588.6,587.98,1.27319059]
[1743936543021,0.58177087,588.59,587.98,1.27319059]
[1743936543221,0.58177087,588.58,587.98,1.27319059]
[1743936543518,0.58177087,588.57,587.98,1.27319059]
[1743936543722,0.702,588.63,587.98,1.27319059]
[1743936543921,0.5818375,588.62,587.98,1.27319059]
[1743936544121,0.5818375,588.61,587.98,1.27319059]
[1743936544317,0.5818375,588.6,587.98,1.27319059]
[1743936544520,0.5818375,588.59,587.98,1.27319059]
[1743936544816,0.5818375,588.58,587.98,1.27319059]
[1743936545019,0.5818375,588.57,587.98,1.27319059]
[1743936545216,0.702,588.63,587.98,1.27319059]
[1743936545419,0.58184105,588.62,587.98,1.27319059]
[1743936545617,0.702,588.63,587.95,1.27319059]
[1743936548118,0.58185477,588.62,587.95,1.27319059]
[1743936549626,0.58189709,588.62,587.95,1.27319059]
[1743936550127,0.58189709,588.61,587.95,1.27319059]
[1743936550427,0.702,588.63,587.87,1.27319059]
[1743936550620,0.58192487,588.62,587.87,1.27319059]
[1743936550928,0.58191194,588.62,587.87,1.27319059]
[1743936551126,0.702,588.63,587.87,1.27319059]
[1743936551426,0.58192644,588.62,587.87,1.27319059]
[1743936551927,0.702,588.63,587.87,1.27319059]
[1743936552627,0.702,588.63,587.77,1.61345974]
[1743936552628,0.702,588.63,587.86,1.27319059]
[1743936553624,0.58195226,588.62,587.86,1.27319059]
[1743936553828,0.58195226,588.61,587.86,1.27319059]
[1743936554026,0.58195226,588.6,587.86,1.27319059]
[1743936554222,0.58195226,588.59,587.86,1.27319059]
[1743936554422,0.702,588.63,587.86,1.27319059]
[1743936554624,0.58197606,588.62,587.86,1.27319059]
[1743936554825,0.58197606,588.61,587.86,1.27319059]
[1743936555027,0.58197606,588.6,587.86,1.27319059]
[1743936555329,0.58197606,588.59,587.86,1.27319059]
[1743936555626,0.58197606,588.58,587.86,1.27319059]
[1743936555826,0.702,588.63,587.86,1.27319059]
[1743936556022,0.702,588.63,587.85,0.29572474]
[1743936556023,0.768,588.58,587.89,1.27319059]
[1743936560534,0.768,588.58,587.89,1.27319059]
[1743936560739,0.768,588.58,587.96,1.27319059]
[1743936561134,1.328,588.58,587.96,1.27319059]
[1743936562244,1.328,588.58,587.97,0.28592824]
[1743936563244,1.328,588.58,588.0,1.27319059]
[1743936563543,1.328,588.58,588.01,0.28592824]
[1743936566039,1.328,588.58,588.0,1.27319059]
[1743936566241,1.328,588.58,588.01,0.28591717]
[1743936566847,1.328,588.58,588.0,1.27319059]
[1743936567146,1.328,588.58,588.01,0.28588771]
[1743936567740,1.328,588.58,588.02,1.27319059]
[1743936567944,1.328,588.58,588.03,0.28588771]
[1743936570349,1.328,588.58,588.04,1.27319059]
[1743936570549,1.328,588.58,588.05,0.28588771]
[1743936570950,1.328,588.58,588.04,1.27319059]
[1743936571143,1.328,588.58,588.05,0.28584449]
[1743936572344,1.328,588.58,588.06,0.28584449]
[1743936572546,1.328,588.58,588.07,0.28584449]
[1743936572749,1.328,588.58,588.02,1.27319059]
[1743936572946,1.328,588.58,588.03,0.28585288]
[1743936575955,1.328,588.58,588.04,0.28581017]
[1743936576154,1.328,588.58,588.03,0.28581017]
[1743936576355,1.328,588.58,588.04,0.28581017]
[1743936576653,1.328,588.58,588.02,1.27319059]
[1743936576855,1.328,588.58,588.03,0.28580854]
[1743936579156,1.328,588.58,588.04,1.27319059]
[1743936579352,1.328,588.58,588.05,0.28586488]
[1743936580759,1.328,588.58,588.06,0.28588078]
[1743936581059,1.328,588.58,588.07,0.28587805]
[1743936583058,1.328,588.58,588.08,0.28587805]
[1743936583252,1.328,588.58,588.04,0.28587805]
[1743936583456,1.328,588.58,588.05,0.28587805]
[1743936583653,1.328,588.58,588.06,0.28587805]
[1743936583953,1.328,588.58,588.07,0.28587805]
[1743936584260,1.328,588.58,588.04,0.28587805]
[1743936584558,1.328,588.58,588.05,0.28587805]
[1743936584760,1.328,588.58,588.12,1.27319059]
[1743936584959,1.328,588.58,588.13,0.28587805]
[1743936586768,1.328,588.58,588.17,1.27319059]
[1743936586967,1.328,588.58,588.18,0.28587805]
[1743936588061,1.328,588.58,588.17,1.27319059]
[1743936588663,1.328,588.58,587.97,1.52782871]
[1743936588664,1.328,588.58,588.03,1.27319059]
[1743936588857,1.328,588.58,588.04,0.28589433]
[1743936589360,1.328,588.58,588.05,0.28586485]
[1743936589562,1.328,588.58,588.04,0.28586485]
[1743936591567,1.328,588.58,587.98,0.28586485]
[1743936597767,1.328,588.58,587.99,0.28595067]
[1743936597971,1.328,588.58,587.9,0.28595067]
[1743936598175,1.328,588.58,587.91,0.62613879]
[1743936598393,1.328,588.58,587.92,0.626133]
[1743936598591,1.328,588.58,587.93,0.28595067]
[1743936599185,1.328,588.58,587.92,0.63586812]
[1743936599387,1.328,588.58,587.93,0.28597406]
[1743936600872,1.328,588.58,587.94,0.28598911]
[1743936601068,1.328,588.58,587.93,0.28598911]
[1743936601274,1.328,588.58,587.94,0.28598911]
[1743936601475,1.328,588.58,587.92,1.90905871]
[1743936601777,1.328,588.58,587.93,0.2859892]
[1743936601974,1.328,588.58,587.95,1.27319059]
[1743936602175,1.328,588.58,587.96,0.2859892]
[1743936603874,1.328,588.58,588.04,1.27319059]
[1743936604080,1.328,588.58,588.05,0.2859892]
[1743936607081,1.328,588.58,588.04,1.27319059]
[1743936607280,1.328,588.58,588.05,0.28598928]
[1743936610381,1.328,588.58,588.06,0.28590809]
[1743936610585,1.328,588.58,587.93,0.28590809]
[1743936610784,1.328,588.58,587.94,0.28590809]
[1743936612187,1.328,588.58,587.95,0.2859063]
[1743936612387,1.328,588.58,587.94,0.2859063]
[1743936612686,1.328,588.58,587.92,0.34018233]
[1743936612687,1.328,588.58,587.95,0.2859063]
[1743936612880,1.328,588.58,587.93,0.58160717]
[1743936613080,1.328,588.58,587.94,0.2859063]
[1743936613681,1.328,588.58,587.95,0.28591044]
[1743936613886,1.328,588.58,587.96,0.28591044]
[1743936614082,1.328,588.58,587.94,0.28591044]
[1743936614287,1.328,588.58,587.95,0.28591044]
[1743936614487,1.328,588.58,587.94,0.28591044]
[1743936614787,1.328,588.58,587.95,0.28591044]
[1743936614988,1.328,588.58,587.94,0.28591044]
[1743936615286,1.328,588.58,587.98,1.27319059]
[1743936615491,1.328,588.58,587.99,0.28600022]
[1743936616893,1.328,588.58,587.98,1.27319059]
[1743936617897,1.328,588.58,587.92,0.34018233]
[1743936618092,1.328,588.58,587.93,0.28594103]
[1743936620099,1.328,588.58,587.92,0.34018233]
[1743936620299,1.328,588.58,587.94,0.28593104]
[1743936620499,1.328,588.58,587.95,0.28593104]
[1743936620695,1.328,588.58,587.93,0.28593104]
[1743936620899,1.328,588.58,587.94,0.28593104]
[1743936621199,1.328,588.58,587.93,0.28593104]
[1743936621399,1.328,588.58,587.94,0.28593104]
[1743936621595,1.328,588.58,587.93,0.28593104]
[1743936621798,1.328,588.58,587.94,0.28593104]
[1743936621996,1.328,588.58,587.93,0.28593104]
[1743936622300,1.328,588.58,587.94,0.28593104]
[1743936622500,1.328,588.58,587.93,0.28593104]
[1743936622700,1.328,588.58,587.94,0.28593104]
[1743936623000,1.328,588.58,587.95,0.28593104]
[1743936623200,1.328,588.58,587.93,0.28593104]
[1743936623395,1.328,588.58,587.92,0.34018233]
[1743936623600,1.328,588.58,587.93,0.28592652]
[1743936626800,1.328,588.58,587.92,0.34018233]
[1743936627001,1.328,588.58,587.93,0.28601536]
[1743936628304,0.58147846,588.57,587.93,0.28601536]
[1743936628499,0.58147846,588.56,587.93,0.28601536]
[1743936628703,0.58147846,588.55,587.93,0.28601536]
[1743936628902,0.2957461,588.61,587.93,0.28601536]
[1743936629097,0.581082,588.6,587.93,0.28601536]
[1743936629302,0.581082,588.59,587.93,0.28601536]
[1743936629499,0.581082,588.58,587.93,0.28601536]
[1743936629702,0.58098548,588.57,587.93,0.28601536]
[1743936629900,0.58098548,588.56,587.93,0.28601536]
[1743936630100,0.58098548,588.6,587.93,0.28601536]
[1743936630304,0.58098548,588.59,587.93,0.28601536]
[1743936630505,0.58098548,588.58,587.93,0.28601536]
[1743936630701,0.58098548,588.57,587.94,0.28593652]
[1743936630901,0.58098548,588.6,587.95,0.28593652]
[1743936631102,0.58098548,588.59,587.93,0.28593652]
[1743936631301,0.846,588.59,587.94,0.28593652]
[1743936631502,1.42698548,588.59,587.93,0.28593652]
[1743936631705,0.846,588.59,587.93,0.28593652]
[1743936631903,1.42698548,588.59,587.93,0.28593652]
[1743936632108,0.712,588.58,587.93,0.28593652]
[1743936633609,0.58098548,588.57,587.93,0.28593652]
[1743936633809,0.712,588.58,587.93,0.28593652]
[1743936634909,0.712,588.58,587.94,0.28597249]
[1743936635412,0.712,588.58,587.95,0.28597249]
[1743936635613,0.712,588.58,587.93,0.28597249]
[1743936638112,0.712,588.58,587.92,0.34018233]
[1743936638310,0.712,588.58,587.93,0.28597783]
[1743936639814,0.712,588.58,587.94,0.28600794]
[1743936640212,0.712,588.58,587.95,0.28600794]
[1743936640516,0.712,588.58,587.92,0.34018233]
[1743936640716,0.712,588.58,587.93,0.28599785]
[1743936640916,0.712,588.58,587.94,0.28599726]
[1743936641115,0.712,588.58,587.93,0.28599726]
[1743936648028,0.712,588.58,587.94,0.28598584]
[1743936648226,0.712,588.58,587.93,0.28598584]
[1743936648429,0.712,588.58,587.94,0.28598584]
[1743936648628,0.712,588.58,587.93,0.28598584]
[1743936648828,0.712,588.58,587.94,0.28598584]
[1743936649029,0.712,588.58,587.93,0.28598584]
[1743936649228,0.712,588.58,587.94,0.28598584]
[1743936649527,0.712,588.58,587.95,0.28598584]
[1743936649729,0.712,588.58,587.93,0.28598584]
[1743936649929,0.712,588.58,587.94,0.28598584]
[1743936650129,0.712,588.58,587.93,0.28598584]
[1743936651328,0.712,588.58,587.94,0.28594029]
[1743936651726,0.712,588.58,587.95,0.28594029]
[1743936651930,0.712,588.58,587.96,0.28594029]
[1743936652131,0.712,588.58,587.93,0.28594029]
[1743936652328,0.712,588.58,587.94,0.28594029]
[1743936652528,0.712,588.58,587.95,0.28594029]
[1743936652732,0.712,588.58,587.92,0.34018233]
[1743936653032,0.712,588.58,587.93,0.28595078]
[1743936658630,0.712,588.58,587.93,1.55914137]
[1743936658834,0.712,588.58,587.94,0.28595078]
[1743936660830,0.712,588.58,587.93,1.27319059]
[1743936661028,0.712,588.58,587.94,0.28593942]
[1743936661532,0.712,588.58,587.95,0.28593942]
[1743936661733,0.712,588.58,587.93,0.28593942]
[1743936661929,0.712,588.58,587.94,0.28593942]
[1743936662129,0.712,588.58,587.95,0.28597973]
[1743936662332,0.712,588.58,587.93,0.28597973]
[1743936662533,0.712,588.58,587.94,0.28597973]
[1743936662833,0.712,588.58,587.92,0.34018233]
[1743936662834,0.712,588.58,587.95,0.28597973]
[1743936663029,0.712,588.58,587.93,0.28597973]
[1743936663233,0.712,588.58,587.94,0.28597973]
[1743936663434,0.712,588.58,587.93,0.28597973]
[1743936663733,0.712,588.58,587.94,0.2859841]
[1743936664134,0.712,588.58,587.95,0.2859841]
[1743936664529,0.712,588.58,587.96,0.2859841]
[1743936664732,0.712,588.58,587.93,0.2859841]
[1743936664932,0.712,588.58,587.94,0.2859841]
[1743936665130,0.712,588.58,587.93,0.2859841]
[1743936665333,0.712,588.58,587.92,0.34018233]
[1743936665533,0.712,588.58,587.93,0.28594965]
[1743936666637,0.712,588.58,587.99,1.27319059]
[1743936667135,0.712,588.58,588.0,0.28585252]
[1743936668332,0.712,588.58,587.99,1.27319059]
[1743936668537,0.712,588.58,588.0,0.28587619]
[1743936670236,0.712,588.58,588.01,0.28587673]
[1743936670532,0.712,588.58,588.02,0.28587673]
[1743936670736,0.712,588.58,588.03,0.28587673]
[1743936670933,0.712,588.58,588.04,0.28587673]
[1743936671135,0.712,588.58,588.05,0.28587673]
[1743936671439,0.712,588.58,588.06,0.28587673]
[1743936671639,0.712,588.58,587.96,0.28587673]
[1743936671841,0.712,588.58,587.97,0.28587673]
[1743936672040,1.31,588.58,587.96,0.28587673]
[1743936672240,1.31,588.58,587.97,0.28587673]
[1743936672441,1.31,588.58,587.96,0.28587673]
[1743936672740,1.31,588.58,587.97,0.28587673]
[1743936672942,1.31,588.58,587.96,0.28587673]
[1743936673142,1.31,588.58,587.97,0.28587673]
[1743936673340,1.31,588.58,587.96,0.28587673]
[1743936673737,1.31,588.58,587.97,0.28587673]
[1743936673940,1.31,588.58,587.93,0.28587673]
[1743936674241,1.31,588.58,587.92,0.34018233]
[1743936674242,1.31,588.58,587.94,0.28587673]
[1743936674644,1.31,588.58,587.95,0.28587673]
[1743936674944,1.31,588.58,587.96,0.28587673]
[1743936675138,1.31,588.58,587.93,0.28587673]
[1743936675342,1.31,588.58,587.96,1.27319059]
[1743936677443,1.31,588.58,587.92,0.34018233]
[1743936680551,1.31,588.58,587.93,0.28596542]
[1743936681148,1.31,588.58,587.92,0.34018233]
[1743936681351,1.31,588.58,587.93,0.28592493]
[1743936686054,1.31,588.58,587.94,0.28592483]
[1743936686254,1.31,588.58,587.93,0.28592483]
[1743936686451,1.31,588.58,587.94,0.28592483]
[1743936686656,1.31,588.58,587.93,0.28592483]
[1743936686955,1.31,588.58,587.94,0.28592483]
[1743936687158,1.31,588.58,587.95,0.28592483]
[1743936687556,1.31,588.58,587.96,0.28592483]
[1743936687756,1.31,588.58,587.93,0.28592483]
[1743936688056,1.31,588.58,587.94,0.28592483]
[1743936688258,1.31,588.58,587.93,0.28592483]
[1743936688456,1.31,588.58,587.94,0.28592483]
[1743936688650,1.31,588.58,587.93,0.28592483]
[1743936688855,1.31,588.58,587.92,0.34018233]
[1743936688856,1.31,588.58,587.94,0.28592483]
[1743936689051,1.31,588.58,587.95,0.28592483]
[1743936689258,1.31,588.58,587.96,0.2859677]
[1743936689458,1.31,588.58,587.93,0.2859677]
[1743936689658,1.31,588.58,587.94,0.2859677]
[1743936689859,1.31,588.58,587.93,0.2859677]
[1743936690059,1.31,588.58,587.94,0.2859677]
[1743936690257,1.31,588.58,587.93,0.2859677]
[1743936690455,1.31,588.58,587.94,0.2859677]
[1743936690657,1.31,588.58,587.93,0.2859677]
[1743936690961,1.31,588.58,587.97,1.27319059]
[1743936691161,1.31,588.58,587.98,0.2859677]
[1743936692262,1.31,588.58,587.97,1.27319059]
[1743936692463,1.31,588.58,587.99,0.28596357]
[1743936692663,1.31,588.58,588.0,0.28596357]
[1743936692959,1.31,588.58,588.01,0.28596357]
[1743936693263,1.31,588.58,588.02,0.28596357]
[1743936693559,1.31,588.58,588.03,0.28596357]
[1743936693762,1.31,588.58,588.04,0.28596357]
[1743936693966,1.31,588.58,587.97,1.27319059]
[1743936694164,1.31,588.58,587.92,0.34018233]
[1743936694165,1.31,588.58,588.13,1.27319059]
[1743936694363,1.31,588.58,588.14,0.28595953]
[1743936695559,1.31,588.58,588.15,0.28596625]
[1743936695863,1.31,588.58,588.16,0.28596625]
[1743936696260,1.31,588.58,588.14,0.28596625]
[1743936697164,1.31,588.58,588.15,0.28596625]
[1743936697364,1.31,588.58,588.04,0.28596625]
[1743936697660,1.31,588.58,588.05,0.28596625]
[1743936697866,1.31,588.58,588.06,0.28596625]
[1743936698161,1.31,588.58,588.07,0.28596625]
[1743936698358,1.31,588.58,588.04,0.28596625]
[1743936698558,1.31,588.58,588.05,0.28596625]
[1743936698760,1.31,588.58,588.06,0.28596625]
[1743936698963,1.31,588.58,588.04,0.28596625]
[1743936699162,1.31,588.58,588.05,0.28596625]
[1743936699362,1.31,588.58,588.06,0.28596625]
[1743936699569,1.31,588.58,588.07,0.28596625]
[1743936699767,1.31,588.58,587.96,0.28596625]
[1743936700862,1.31,588.58,587.97,0.29569207]
[1743936701066,1.31,588.58,587.98,0.28596957]
[1743936701464,1.31,588.58,588.0,1.27319059]
[1743936701665,1.31,588.58,588.01,0.28596957]
[1743936702264,1.31,588.58,588.0,1.27319059]
[1743936702464,1.31,588.58,588.01,0.28597359]
[1743936703874,1.31,588.58,587.97,1.56887638]
[1743936704075,1.31,588.58,587.98,0.28598057]
[1743936705974,1.31,588.58,587.97,1.56886005]
[1743936706171,1.31,588.58,587.98,0.28596081]
[1743936706378,1.31,588.58,588.12,1.27319059]
[1743936706677,1.31,588.58,588.13,0.28596081]
[1743936707179,1.31,588.58,588.12,1.27319059]
[1743936707380,1.31,588.58,588.13,0.28596051]
[1743936708977,1.31,588.58,588.13,1.5591511]
[1743936709181,1.31,588.58,588.14,0.28596051]
[1743936710282,1.31,588.58,588.13,1.27319059]
[1743936710488,1.31,588.58,588.14,0.28594248]
[1743936711281,1.31,588.58,588.16,1.27319059]
[1743936711481,1.31,588.58,588.17,0.28594248]
[1743936712082,1.31,588.58,588.18,0.28594157]
[1743936712282,1.31,588.58,588.19,0.28594157]
[1743936712485,1.31,588.58,588.17,0.28594157]
[1743936712686,1.31,588.58,588.18,0.28594157]
[1743936712985,1.31,588.58,588.19,0.28594157]
[1743936713186,1.31,588.58,588.2,0.28594157]
[1743936713385,1.31,588.58,588.17,0.28594157]
[1743936713583,1.31,588.58,588.07,1.27319059]
[1743936713584,1.31,588.58,588.18,1.27319059]
[1743936713782,1.31,588.58,588.19,0.28591353]
[1743936715088,1.31,588.58,588.19,1.55910412]
[1743936715387,1.31,588.58,588.2,0.28591353]
[1743936716990,1.31,588.58,588.2,1.55910412]
[1743936717184,1.31,588.58,588.21,0.28591353]
[1743936718690,1.31,588.58,588.22,0.28591165]
[1743936718884,1.31,588.58,588.21,0.28591165]
[1743936722396,1.31,588.58,588.21,1.55910224]
[1743936722591,1.31,588.58,588.22,0.28591165]
[1743936725096,1.31,588.58,588.11,0.28591165]
[1743936725297,1.31,588.58,588.1,0.29561672]
[1743936725599,1.31,588.58,588.11,0.28587057]
[1743936726693,1.31,588.58,588.12,0.28587057]
[1743936726897,1.31,588.58,588.08,0.28587057]
[1743936727093,1.31,588.58,588.09,0.28587057]
[1743936727297,1.31,588.58,588.08,0.28587057]
[1743936727494,1.31,588.58,588.09,0.28587057]
[1743936727797,1.31,588.58,588.1,0.28587057]
[1743936727999,1.31,588.58,588.09,0.2956343]
[1743936728197,1.31,588.58,588.1,0.28586892]
[1743936729602,1.31,588.58,588.06,1.27319059]
[1743936729798,1.31,588.58,588.07,0.28586892]
[1743936730003,1.31,588.58,588.11,1.27319059]
[1743936730400,1.31,588.58,588.12,0.28587863]
[1743936733005,1.31,588.58,588.11,1.27319059]
[1743936733206,1.31,588.58,588.12,0.28585672]
[1743936734603,1.31,588.58,588.11,1.56881986]
[1743936734805,1.31,588.58,588.22,1.27319059]
[1743936735004,1.31,588.58,588.23,0.28581887]
[1743936735403,1.31,588.58,588.24,0.2857572]
[1743936735708,1.31,588.58,588.23,0.2857572]
[1743936735902,1.31,588.58,588.24,0.2857572]
[1743936736101,1.31,588.58,588.23,0.2857572]
[1743936736304,1.31,588.58,588.24,0.2857572]
[1743936736502,1.31,588.58,588.23,0.2857572]
[1743936736808,1.31,588.58,588.24,0.2857572]
[1743936737002,1.31,588.58,588.23,0.2857572]
[1743936737202,1.31,588.58,588.24,0.2857572]
[1743936737401,1.31,588.58,588.12,0.29561546]
[1743936737402,1.31,588.58,588.25,0.2857572]
[1743936737602,1.31,588.58,588.2,0.2857572]
[1743936737807,0.29561546,588.98,588.21,0.2857572]
[1743936738107,0.29561546,588.98,588.22,0.2857572]
[1743936738407,0.29561546,588.98,588.2,0.2857572]
[1743936738606,0.58111089,589.42,588.21,0.2857572]
[1743936738806,1.2326235,589.41,588.2,0.2857572]
[1743936739006,0.29551254,588.98,588.2,0.2857572]
[1743936739203,0.58111089,589.39,588.2,0.2857572]
[1743936739406,0.67691307,589.92,588.2,0.2857572]
[1743936739407,1.23264005,589.38,588.2,0.2857572]
[1743936739602,0.92045629,589.37,588.2,0.2857572]
[1743936739806,1.23265157,589.36,588.2,0.2857572]
[1743936740007,1.23265732,589.35,588.2,0.2857572]
[1743936740207,1.23266308,589.34,588.2,0.2857572]
[1743936740509,1.23266884,589.33,588.2,0.2857572]
[1743936740808,1.2326746,589.32,588.2,0.2857572]
[1743936741006,0.89330041,589.31,588.2,0.2857572]
[1743936741308,0.89330041,589.3,588.2,0.2857572]
[1743936741604,0.92050236,589.29,588.2,0.2857572]
[1743936741807,0.92050812,589.28,588.18,0.2857572]
[1743936742000,0.92051388,589.27,588.19,0.2857572]
[1743936742208,0.92051963,589.26,588.18,0.2857572]
[1743936742402,0.92052539,589.25,588.19,0.2857572]
[1743936742605,0.58111089,589.24,588.18,0.2857572]
[1743936742801,0.58111089,589.23,588.19,0.2857572]
[1743936743005,0.58111089,589.22,588.18,0.2857572]
[1743936743202,0.58111089,589.21,588.19,0.28564736]
[1743936743507,0.58111089,589.2,588.2,0.28564736]
[1743936743707,0.58111089,589.19,588.18,0.28564736]
[1743936743907,0.58111089,589.18,588.18,0.28564736]
[1743936744108,0.58111089,589.17,588.18,0.28564736]
[1743936744308,0.58111089,589.16,588.18,0.28564736]
[1743936744608,0.58111089,589.15,588.19,0.28564736]
[1743936744908,0.58111089,589.14,588.2,0.28564736]
[1743936745207,0.58111089,589.13,588.21,0.28564736]
[1743936745407,0.58126193,589.12,588.12,1.27319059]
[1743936745607,0.58126193,589.11,588.13,0.28562396]
[1743936745804,0.58126193,589.1,588.13,0.28562396]
[1743936746007,0.58126193,589.09,588.13,0.28562396]
[1743936746207,0.29554391,589.12,588.13,0.28562396]
[1743936746208,0.58126193,589.08,588.13,0.28562396]
[1743936746408,0.58126193,589.07,588.13,0.28562396]
[1743936746609,0.58126193,589.06,588.13,0.28562396]
[1743936746811,0.58126193,589.05,588.13,0.28562396]
[1743936747110,0.58126193,589.04,588.13,0.28562396]
[1743936747411,0.58125941,589.03,588.13,0.28562396]
[1743936747610,0.58125941,589.02,588.13,0.28562396]
[1743936747808,0.58125941,589.01,588.13,0.28562396]
[1743936748013,0.58125941,589.0,588.13,0.28562396]
[1743936748212,0.58125941,588.99,588.13,0.28562396]
[1743936748414,0.58125941,588.98,588.13,0.28562396]
[1743936748708,0.58125941,588.97,588.13,0.28562396]
[1743936748909,0.58125941,588.96,588.16,1.27319059]
[1743936749112,0.58125941,588.95,588.17,0.28562396]
[1743936749308,0.58125941,588.94,588.17,0.28562396]
[1743936749508,0.58125941,588.93,588.17,0.28562396]
[1743936749808,0.58125941,588.92,588.17,0.28562396]
[1743936750011,0.58125941,588.91,588.17,0.28562396]
[1743936750210,0.58125941,588.9,588.17,0.28562396]
[1743936750413,0.58125941,588.89,588.17,0.28562396]
[1743936750612,0.58125941,588.88,588.17,0.28562396]
[1743936750912,0.58125941,588.87,588.17,0.28562396]
[1743936751213,0.29556023,589.02,588.17,0.28562396]
[1743936751408,0.58112643,589.01,588.17,0.28562396]
[1743936751608,0.58112643,589.0,588.17,0.28562396]
[1743936751813,0.58112643,588.99,588.2,1.27319059]
[1743936752013,0.58112643,588.98,588.21,0.28562396]
[1743936752213,0.58112643,588.97,588.21,0.28562396]
[1743936752414,0.58112643,588.96,588.21,0.28562396]
[1743936752710,0.58112643,588.95,588.21,0.28562396]
[1743936752912,0.58112643,588.94,588.21,0.28562396]
[1743936753112,0.58112643,588.93,588.21,0.28562396]
[1743936753310,0.58112643,588.92,588.21,0.28562396]
[1743936753511,0.58112643,588.91,588.21,0.28562396]
[1743936753713,0.58112643,588.9,588.21,0.28562396]
[1743936754014,0.58112643,588.89,588.21,0.28562396]
[1743936754212,0.58112643,588.88,588.21,0.28562396]
[1743936754413,0.58112643,588.87,588.21,0.28562396]
[1743936754615,0.29556274,588.98,588.2,0.28562396]
[1743936754810,0.58109192,588.97,588.21,0.28562396]
[1743936755011,0.58109192,588.96,588.21,0.28562396]
[1743936755212,0.58109192,588.95,588.22,0.28562396]
[1743936755412,0.58109192,588.94,588.22,0.28562396]
[1743936755611,0.29551254,589.07,588.23,0.28562396]
[1743936755810,0.751,588.94,588.2,0.28562396]
[1743936756517,0.751,588.94,588.19,1.27319059]
[1743936756718,0.751,588.94,588.2,0.28560642]
[1743936756919,0.751,588.94,588.15,0.29554893]
[1743936757115,0.751,588.94,588.16,0.28560642]
[1743936761217,0.751,588.94,588.15,0.29554893]
[1743936762523,0.751,588.94,588.05,1.27319059]
[1743936762722,0.751,588.94,588.06,0.34010135]
[1743936763824,0.751,588.94,588.16,0.2856211]
[1743936764121,0.751,588.94,588.07,0.29556901]
[1743936764122,0.751,588.94,588.17,0.2855919]
[1743936764322,0.751,588.94,588.08,0.2855919]
[1743936764521,0.751,588.94,588.09,0.6256759]
[1743936764721,0.751,588.94,588.1,0.62567011]
[1743936764918,0.751,588.94,588.11,0.62566433]
[1743936765117,0.751,588.94,588.12,0.62565855]
[1743936765324,0.751,588.94,588.13,0.62565277]
[1743936765520,0.751,588.94,588.14,0.2855919]
[1743936766925,0.751,588.94,588.15,1.27319059]
[1743936767325,0.751,588.94,588.16,0.28561316]
[1743936768828,0.751,588.94,588.15,1.27319059]
[1743936769027,0.751,588.94,588.16,0.28561921]
[1743936769729,0.751,588.94,588.21,1.27319059]
[1743936769928,0.751,588.94,588.22,0.28561921]
[1743936770428,0.751,588.94,588.21,1.27319059]
[1743936770629,0.751,588.94,588.22,0.28561757]
[1743936771929,0.751,588.94,588.17,1.27319059]
[1743936772125,0.751,588.94,588.18,0.28564085]
[1743936774029,0.751,588.94,588.15,0.28564085]
[1743936774233,0.751,588.94,588.16,0.28564085]